{"text_format":"1","workbook":"xlsx","n_sheets":2,"sheets":["كشف","خلاصة نهائية"],"not_rendered":{"charts":0,"images":0,"macros":1,"external_links":0,"defined_names":16,"comments":0,"pivot_tables":0},"unopened":[],"bounds":{"document_bytes":16777216,"sheet_cells":100000,"rows_first":2000,"rows_last":500,"rows_between":2000,"halvings":0,"cell_chars":16384,"cell_head_chars":4096},"cells_cut":0,"cells_raw":0,"read":"whole","date_system":"1900"}

{"sheet":"كشف","index":0,"n_rows":73,"n_cols":50,"rows_kept":73,"cut":false,"hidden":false,"merged":[[4,37,4,40],[0,0,0,36],[1,0,1,21],[4,0,6,0],[4,1,6,1],[2,27,2,32],[1,23,1,26],[2,23,2,26],[3,23,3,26],[3,8,3,11],[3,27,3,32],[4,2,4,32],[4,33,4,36],[1,27,1,32]]}
[null,null,null,null,null,null,null,null,null,null,null,null,null,null,null,null,null,null,null,null,null,null,null,null,null,null,null,null,null,null,null,null,null,null,null,null,null,null,null,null,null,null,null,null,1,null,2022,"عرضية ","السبت","يناير"]
[null,null,null,null,null,null,null,null,null,null,null,null,null,null,null,null,null,null,null,null,null,null,null,"أسماء المعلمين",null,null,null,null,null,null,null,null,null,null,null,null,null,null,null,null,null,null,null,null,2,null,2023,"مرضية ","الأحد","فبراير"]
[null,null,null,null,null,null,null,null,null,null,null,null,null,null,null,null,null,null,null,null,null,null,null,"الشهر ","الشهر",null,null,"يناير",null,null,null,null,null,null,null,null,null,null,null,null,null,null,null,null,3,null,2024,"سنوية ","الإثنين","مارس"]
[null,null,null,null,null,null,null,null,null,null,null,null,null,null,null,null,null,null,null,null,null,null,null,"السنة ","السنة",null,null,2023,null,null,null,null,null,null,null,null,null,null,null,null,null,null,null,null,4,null,2025,"عدم صرف","الثلاثاء","أبريل"]
["ت","الاسم ",null,null,null,null,null,null,null,null,null,null,null,null,null,null,null,null,null,null,null,null,null,null,null,null,null,null,null,null,null,null,null,"المجموع الاجازات ",null,null,null,"العقوبات ",null,null,null,null,null,null,5,null,2026,"تنبيه","الأربعاء","مايو"]
[null,null,{"$f":"IF(C7=\"\",\"\",INDEX($AW$1:$AW$7,WEEKDAY(C7,16)))","v":"الأحد"},{"$f":"IF(D7=\"\",\"\",INDEX($AW$1:$AW$7,WEEKDAY(D7,16)))","v":"الإثنين"},"الثلاثاء","الأربعاء","الخميس","الجمعة","السبت","الأحد","الإثنين","الثلاثاء","الأربعاء","الخميس","الجمعة","السبت","الأحد","الإثنين","الثلاثاء","الأربعاء","الخميس","الجمعة","السبت","الأحد","الإثنين","الثلاثاء","الأربعاء","الخميس","الجمعة","السبت","الأحد","الإثنين","الثلاثاء","عرضية","مرضية ","عدم صرف","سنوية","تنبيه","انذار","حسم","مغادرات","تأخير",null,null,6,null,null,"انذار","الخميس","يونيو"]
[null,null,{"$f":"IF(COLUMNS($A$1:A1)>DAY(DATE($AB$4,INDEX(ROW($A$1:$A$12),MATCH($AB$3,$AX$1:$AX$12,0)),COLUMNS($A$1:A1))),\"\",DATE($AB$4,INDEX(ROW($A$1:$A$12),MATCH($AB$3,$AX$1:$AX$12,0)),COLUMNS($A$1:A1)))","v":"2023-01-01"},{"$f":"IF(COLUMNS($A$1:B1)>DAY(DATE($AB$4,INDEX(ROW($A$1:$A$12),MATCH($AB$3,$AX$1:$AX$12,0)),COLUMNS($A$1:B1))),\"\",DATE($AB$4,INDEX(ROW($A$1:$A$12),MATCH($AB$3,$AX$1:$AX$12,0)),COLUMNS($A$1:B1)))","v":"2023-01-02"},{"$f":"IF(COLUMNS($A$1:C1)>DAY(DATE($AB$4,INDEX(ROW($A$1:$A$12),MATCH($AB$3,$AX$1:$AX$12,0)),COLUMNS($A$1:C1))),\"\",DATE($AB$4,INDEX(ROW($A$1:$A$12),MATCH($AB$3,$AX$1:$AX$12,0)),COLUMNS($A$1:C1)))","v":"2023-01-03"},{"$f":"IF(COLUMNS($A$1:D1)>DAY(DATE($AB$4,INDEX(ROW($A$1:$A$12),MATCH($AB$3,$AX$1:$AX$12,0)),COLUMNS($A$1:D1))),\"\",DATE($AB$4,INDEX(ROW($A$1:$A$12),MATCH($AB$3,$AX$1:$AX$12,0)),COLUMNS($A$1:D1)))","v":"2023-01-04"},{"$f":"IF(COLUMNS($A$1:E1)>DAY(DATE($AB$4,INDEX(ROW($A$1:$A$12),MATCH($AB$3,$AX$1:$AX$12,0)),COLUMNS($A$1:E1))),\"\",DATE($AB$4,INDEX(ROW($A$1:$A$12),MATCH($AB$3,$AX$1:$AX$12,0)),COLUMNS($A$1:E1)))","v":"2023-01-05"},{"$f":"IF(COLUMNS($A$1:F1)>DAY(DATE($AB$4,INDEX(ROW($A$1:$A$12),MATCH($AB$3,$AX$1:$AX$12,0)),COLUMNS($A$1:F1))),\"\",DATE($AB$4,INDEX(ROW($A$1:$A$12),MATCH($AB$3,$AX$1:$AX$12,0)),COLUMNS($A$1:F1)))","v":"2023-01-06"},{"$f":"IF(COLUMNS($A$1:G1)>DAY(DATE($AB$4,INDEX(ROW($A$1:$A$12),MATCH($AB$3,$AX$1:$AX$12,0)),COLUMNS($A$1:G1))),\"\",DATE($AB$4,INDEX(ROW($A$1:$A$12),MATCH($AB$3,$AX$1:$AX$12,0)),COLUMNS($A$1:G1)))","v":"2023-01-07"},{"$f":"IF(COLUMNS($A$1:H1)>DAY(DATE($AB$4,INDEX(ROW($A$1:$A$12),MATCH($AB$3,$AX$1:$AX$12,0)),COLUMNS($A$1:H1))),\"\",DATE($AB$4,INDEX(ROW($A$1:$A$12),MATCH($AB$3,$AX$1:$AX$12,0)),COLUMNS($A$1:H1)))","v":"2023-01-08"},{"$f":"IF(COLUMNS($A$1:I1)>DAY(DATE($AB$4,INDEX(ROW($A$1:$A$12),MATCH($AB$3,$AX$1:$AX$12,0)),COLUMNS($A$1:I1))),\"\",DATE($AB$4,INDEX(ROW($A$1:$A$12),MATCH($AB$3,$AX$1:$AX$12,0)),COLUMNS($A$1:I1)))","v":"2023-01-09"},{"$f":"IF(COLUMNS($A$1:J1)>DAY(DATE($AB$4,INDEX(ROW($A$1:$A$12),MATCH($AB$3,$AX$1:$AX$12,0)),COLUMNS($A$1:J1))),\"\",DATE($AB$4,INDEX(ROW($A$1:$A$12),MATCH($AB$3,$AX$1:$AX$12,0)),COLUMNS($A$1:J1)))","v":"2023-01-10"},{"$f":"IF(COLUMNS($A$1:K1)>DAY(DATE($AB$4,INDEX(ROW($A$1:$A$12),MATCH($AB$3,$AX$1:$AX$12,0)),COLUMNS($A$1:K1))),\"\",DATE($AB$4,INDEX(ROW($A$1:$A$12),MATCH($AB$3,$AX$1:$AX$12,0)),COLUMNS($A$1:K1)))","v":"2023-01-11"},{"$f":"IF(COLUMNS($A$1:L1)>DAY(DATE($AB$4,INDEX(ROW($A$1:$A$12),MATCH($AB$3,$AX$1:$AX$12,0)),COLUMNS($A$1:L1))),\"\",DATE($AB$4,INDEX(ROW($A$1:$A$12),MATCH($AB$3,$AX$1:$AX$12,0)),COLUMNS($A$1:L1)))","v":"2023-01-12"},{"$f":"IF(COLUMNS($A$1:M1)>DAY(DATE($AB$4,INDEX(ROW($A$1:$A$12),MATCH($AB$3,$AX$1:$AX$12,0)),COLUMNS($A$1:M1))),\"\",DATE($AB$4,INDEX(ROW($A$1:$A$12),MATCH($AB$3,$AX$1:$AX$12,0)),COLUMNS($A$1:M1)))","v":"2023-01-13"},{"$f":"IF(COLUMNS($A$1:N1)>DAY(DATE($AB$4,INDEX(ROW($A$1:$A$12),MATCH($AB$3,$AX$1:$AX$12,0)),COLUMNS($A$1:N1))),\"\",DATE($AB$4,INDEX(ROW($A$1:$A$12),MATCH($AB$3,$AX$1:$AX$12,0)),COLUMNS($A$1:N1)))","v":"2023-01-14"},{"$f":"IF(COLUMNS($A$1:O1)>DAY(DATE($AB$4,INDEX(ROW($A$1:$A$12),MATCH($AB$3,$AX$1:$AX$12,0)),COLUMNS($A$1:O1))),\"\",DATE($AB$4,INDEX(ROW($A$1:$A$12),MATCH($AB$3,$AX$1:$AX$12,0)),COLUMNS($A$1:O1)))","v":"2023-01-15"},{"$f":"IF(COLUMNS($A$1:P1)>DAY(DATE($AB$4,INDEX(ROW($A$1:$A$12),MATCH($AB$3,$AX$1:$AX$12,0)),COLUMNS($A$1:P1))),\"\",DATE($AB$4,INDEX(ROW($A$1:$A$12),MATCH($AB$3,$AX$1:$AX$12,0)),COLUMNS($A$1:P1)))","v":"2023-01-16"},{"$f":"IF(COLUMNS($A$1:Q1)>DAY(DATE($AB$4,INDEX(ROW($A$1:$A$12),MATCH($AB$3,$AX$1:$AX$12,0)),COLUMNS($A$1:Q1))),\"\",DATE($AB$4,INDEX(ROW($A$1:$A$12),MATCH($AB$3,$AX$1:$AX$12,0)),COLUMNS($A$1:Q1)))","v":"2023-01-17"},{"$f":"IF(COLUMNS($A$1:R1)>DAY(DATE($AB$4,INDEX(ROW($A$1:$A$12),MATCH($AB$3,$AX$1:$AX$12,0)),COLUMNS($A$1:R1))),\"\",DATE($AB$4,INDEX(ROW($A$1:$A$12),MATCH($AB$3,$AX$1:$AX$12,0)),COLUMNS($A$1:R1)))","v":"2023-01-18"},{"$f":"IF(COLUMNS($A$1:S1)>DAY(DATE($AB$4,INDEX(ROW($A$1:$A$12),MATCH($AB$3,$AX$1:$AX$12,0)),COLUMNS($A$1:S1))),\"\",DATE($AB$4,INDEX(ROW($A$1:$A$12),MATCH($AB$3,$AX$1:$AX$12,0)),COLUMNS($A$1:S1)))","v":"2023-01-19"},{"$f":"IF(COLUMNS($A$1:T1)>DAY(DATE($AB$4,INDEX(ROW($A$1:$A$12),MATCH($AB$3,$AX$1:$AX$12,0)),COLUMNS($A$1:T1))),\"\",DATE($AB$4,INDEX(ROW($A$1:$A$12),MATCH($AB$3,$AX$1:$AX$12,0)),COLUMNS($A$1:T1)))","v":"2023-01-20"},{"$f":"IF(COLUMNS($A$1:U1)>DAY(DATE($AB$4,INDEX(ROW($A$1:$A$12),MATCH($AB$3,$AX$1:$AX$12,0)),COLUMNS($A$1:U1))),\"\",DATE($AB$4,INDEX(ROW($A$1:$A$12),MATCH($AB$3,$AX$1:$AX$12,0)),COLUMNS($A$1:U1)))","v":"2023-01-21"},{"$f":"IF(COLUMNS($A$1:V1)>DAY(DATE($AB$4,INDEX(ROW($A$1:$A$12),MATCH($AB$3,$AX$1:$AX$12,0)),COLUMNS($A$1:V1))),\"\",DATE($AB$4,INDEX(ROW($A$1:$A$12),MATCH($AB$3,$AX$1:$AX$12,0)),COLUMNS($A$1:V1)))","v":"2023-01-22"},{"$f":"IF(COLUMNS($A$1:W1)>DAY(DATE($AB$4,INDEX(ROW($A$1:$A$12),MATCH($AB$3,$AX$1:$AX$12,0)),COLUMNS($A$1:W1))),\"\",DATE($AB$4,INDEX(ROW($A$1:$A$12),MATCH($AB$3,$AX$1:$AX$12,0)),COLUMNS($A$1:W1)))","v":"2023-01-23"},{"$f":"IF(COLUMNS($A$1:X1)>DAY(DATE($AB$4,INDEX(ROW($A$1:$A$12),MATCH($AB$3,$AX$1:$AX$12,0)),COLUMNS($A$1:X1))),\"\",DATE($AB$4,INDEX(ROW($A$1:$A$12),MATCH($AB$3,$AX$1:$AX$12,0)),COLUMNS($A$1:X1)))","v":"2023-01-24"},{"$f":"IF(COLUMNS($A$1:Y1)>DAY(DATE($AB$4,INDEX(ROW($A$1:$A$12),MATCH($AB$3,$AX$1:$AX$12,0)),COLUMNS($A$1:Y1))),\"\",DATE($AB$4,INDEX(ROW($A$1:$A$12),MATCH($AB$3,$AX$1:$AX$12,0)),COLUMNS($A$1:Y1)))","v":"2023-01-25"},{"$f":"IF(COLUMNS($A$1:Z1)>DAY(DATE($AB$4,INDEX(ROW($A$1:$A$12),MATCH($AB$3,$AX$1:$AX$12,0)),COLUMNS($A$1:Z1))),\"\",DATE($AB$4,INDEX(ROW($A$1:$A$12),MATCH($AB$3,$AX$1:$AX$12,0)),COLUMNS($A$1:Z1)))","v":"2023-01-26"},{"$f":"IF(COLUMNS($A$1:AA1)>DAY(DATE($AB$4,INDEX(ROW($A$1:$A$12),MATCH($AB$3,$AX$1:$AX$12,0)),COLUMNS($A$1:AA1))),\"\",DATE($AB$4,INDEX(ROW($A$1:$A$12),MATCH($AB$3,$AX$1:$AX$12,0)),COLUMNS($A$1:AA1)))","v":"2023-01-27"},{"$f":"IF(COLUMNS($A$1:AB1)>DAY(DATE($AB$4,INDEX(ROW($A$1:$A$12),MATCH($AB$3,$AX$1:$AX$12,0)),COLUMNS($A$1:AB1))),\"\",DATE($AB$4,INDEX(ROW($A$1:$A$12),MATCH($AB$3,$AX$1:$AX$12,0)),COLUMNS($A$1:AB1)))","v":"2023-01-28"},{"$f":"IF(COLUMNS($A$1:AC1)>DAY(DATE($AB$4,INDEX(ROW($A$1:$A$12),MATCH($AB$3,$AX$1:$AX$12,0)),COLUMNS($A$1:AC1))),\"\",DATE($AB$4,INDEX(ROW($A$1:$A$12),MATCH($AB$3,$AX$1:$AX$12,0)),COLUMNS($A$1:AC1)))","v":"2023-01-29"},{"$f":"IF(COLUMNS($A$1:AD1)>DAY(DATE($AB$4,INDEX(ROW($A$1:$A$12),MATCH($AB$3,$AX$1:$AX$12,0)),COLUMNS($A$1:AD1))),\"\",DATE($AB$4,INDEX(ROW($A$1:$A$12),MATCH($AB$3,$AX$1:$AX$12,0)),COLUMNS($A$1:AD1)))","v":"2023-01-30"},{"$f":"IF(COLUMNS($A$1:AE1)>DAY(DATE($AB$4,INDEX(ROW($A$1:$A$12),MATCH($AB$3,$AX$1:$AX$12,0)),COLUMNS($A$1:AE1))),\"\",DATE($AB$4,INDEX(ROW($A$1:$A$12),MATCH($AB$3,$AX$1:$AX$12,0)),COLUMNS($A$1:AE1)))","v":"2023-01-31"},"عرضة","مرضى","عدم صرف","سنوية","تنبيه","انذار","حسم","مغادرات","تأخير",null,null,7,null,null,"حسم من الراتب","الجمعة","يوليه"]
[{"$f":"ROW()-7","v":1},"س 1","مرضى",null,"مرضى","سنوية ","مرضى",null,"انذار",null,null,null,null,"عرضة",null,"عرضة",null,null,null,"سنوية",null,null,null,null,null,"تأخير","تأخير",null,null,"تأخير",null,null,null,{"$f":"COUNTIF(C8:AG8,\"*\"&AH$7&\"*\")","v":2},{"$f":"COUNTIF(C8:AG8,\"*\"&AI$7&\"*\")","v":3},{"$f":"COUNTIF(C8:AH8,\"*\"&AJ$7&\"*\")","v":0},{"$f":"COUNTIF(C8:AG8,\"*\"&AK$7&\"*\")","v":2},{"$f":"COUNTIF(C8:AG8,\"*\"&AL$7&\"*\")","v":0},{"$f":"COUNTIF(C8:AG8,\"*\"&AM$7&\"*\")","v":1},{"$f":"COUNTIF(C8:AG8,\"*\"&AN$7&\"*\")","v":0},{"$f":"COUNTIF(C8:AG8,\"*\"&AO$7&\"*\")","v":0},{"$f":"COUNTIF(C8:AN8,\"*\"&AP$7&\"*\")","v":3},null,null,8,null,null,"مغادرة ",null,"أغسطس"]
[{"$f":"ROW()-7","v":2},"س 2",null,null,null,null,null,null,null,null,null,null,null,null,null,null,null,null,"عرضية ",null,null,null,null,null,null,null,null,null,null,null,null,null,null,{"$f":"COUNTIF(C9:AG9,\"*\"&AH$7&\"*\")","v":0},{"$f":"COUNTIF(C9:AG9,\"*\"&AI$7&\"*\")","v":0},{"$f":"COUNTIF(C9:AH9,\"*\"&AJ$7&\"*\")","v":0},{"$f":"COUNTIF(C9:AG9,\"*\"&AK$7&\"*\")","v":0},{"$f":"COUNTIF(C9:AG9,\"*\"&AL$7&\"*\")","v":0},{"$f":"COUNTIF(C9:AG9,\"*\"&AM$7&\"*\")","v":0},{"$f":"COUNTIF(C9:AG9,\"*\"&AN$7&\"*\")","v":0},{"$f":"COUNTIF(C9:AG9,\"*\"&AO$7&\"*\")","v":0},{"$f":"COUNTIF(C9:AN9,\"*\"&AP$7&\"*\")","v":0},null,null,9,null,null,"تأخير",null,"سبتمبر"]
[3,"س 3",null,null,null,null,null,null,null,null,null,null,null,null,null,null,null,null,null,null,null,null,null,null,null,null,null,null,null,null,null,null,null,0,0,0,0,0,0,0,0,0,null,null,10,null,null,null,null,"أكتوبر"]
[4,"س 4",null,null,null,null,null,null,null,null,null,null,null,null,null,null,null,null,null,null,null,null,null,null,null,null,null,null,null,null,null,null,null,0,0,0,0,0,0,0,0,0,null,null,11,null,null,null,null,"نوفمبر"]
[5,"س 5",null,null,null,null,null,null,"مرضية ",null,null,null,null,"عدم صرف",null,null,null,null,null,null,null,null,null,null,null,null,null,null,null,null,null,null,null,0,0,1,0,0,0,0,0,0,null,null,12,null,null,null,null,"ديسمبر"]
[6,"س 6",null,null,null,null,null,null,null,null,null,null,null,null,null,null,null,null,null,null,null,null,null,null,null,null,null,null,null,null,null,null,null,0,0,0,0,0,0,0,0,0,null,null,13]
[7,"س 7",null,null,null,null,null,null,null,null,null,null,null,null,null,null,null,null,null,null,null,null,null,null,null,null,null,null,null,null,null,null,null,0,0,0,0,0,0,0,0,0,null,null,14]
[8,"س 8",null,null,null,null,null,null,null,null,null,null,null,null,null,null,null,null,null,null,null,null,null,null,null,null,null,null,null,null,null,null,null,0,0,0,0,0,0,0,0,0,null,null,15]
[9,"س 9",null,null,null,null,null,null,null,null,null,null,null,null,null,null,null,null,null,null,null,null,null,null,null,null,null,null,null,null,null,null,null,0,0,0,0,0,0,0,0,0,null,null,16]
[10,"س 10",null,null,null,null,null,null,null,null,null,null,null,null,null,null,null,null,null,null,null,null,null,null,null,null,null,null,null,null,null,null,null,0,0,0,0,0,0,0,0,0,null,null,17]
[11,"س 11",null,null,null,null,null,null,null,null,null,null,null,null,null,null,null,null,null,null,null,null,null,null,null,null,null,null,null,null,null,null,null,0,0,0,0,0,0,0,0,0,null,null,18]
[12,"س 12",null,null,null,null,null,null,null,null,null,null,null,null,null,null,null,null,null,null,null,null,null,null,null,null,null,null,null,null,null,null,null,0,0,0,0,0,0,0,0,0,null,null,19]
[13,"س 13",null,null,null,null,null,null,null,null,null,null,null,null,"jj",null,null,null,null,null,null,null,null,null,null,null,null,null,null,null,null,null,null,0,0,0,0,0,0,0,0,0,null,null,20]
[14,"س 14",null,null,null,null,null,null,null,null,null,null,null,null,null,null,null,null,null,null,null,null,null,null,null,null,null,null,null,null,null,null,null,0,0,0,0,0,0,0,0,0,null,null,21]
[15,"س 15",null,null,null,null,null,null,null,null,null,null,null,null,null,null,null,null,null,null,null,null,null,null,null,null,null,null,null,null,null,null,null,0,0,0,0,0,0,0,0,0,null,null,22]
[16,"س 16",null,null,null,null,null,null,null,null,null,null,null,null,null,null,null,null,null,null,null,null,null,null,null,null,null,null,null,null,null,null,null,0,0,0,0,0,0,0,0,0,null,null,23]
[17,"س 17",null,null,null,null,null,null,null,null,null,null,null,null,null,null,null,null,null,null,null,null,null,null,null,null,null,null,null,null,null,null,null,0,0,0,0,0,0,0,0,0,null,null,24]
[18,"س 18",null,null,null,null,null,null,null,null,null,null,null,null,null,null,null,null,null,null,null,null,null,null,null,null,null,null,null,null,null,null,null,0,0,0,0,0,0,0,0,0,null,null,25]
[19,"س 19",null,null,null,null,null,null,null,null,null,null,null,null,null,null,null,null,null,null,null,null,null,null,null,null,null,null,null,null,null,null,null,0,0,0,0,0,0,0,0,0,null,null,26]
[20,"س 20",null,null,null,null,null,null,null,null,null,null,null,null,null,null,null,null,null,null,null,null,null,null,null,null,null,null,null,null,null,null,null,0,0,0,0,0,0,0,0,0,null,null,27]
[21,"س 21",null,null,null,null,null,null,null,null,null,null,null,null,null,null,null,null,null,null,null,null,null,null,null,null,null,null,null,null,null,null,null,0,0,0,0,0,0,0,0,0,null,null,28]
[22,"س 22",null,null,null,null,null,null,null,null,null,null,null,null,null,null,null,null,null,null,null,null,null,null,null,null,null,null,null,null,null,null,null,0,0,0,0,0,0,0,0,0,null,null,29]
[23,"س 23",null,null,null,null,null,null,null,null,null,null,null,null,null,null,null,null,null,null,null,null,null,null,null,null,null,null,null,null,null,null,null,0,0,0,0,0,0,0,0,0,null,null,30]
[24,"س 24",null,null,null,null,null,null,null,null,null,null,null,null,null,null,null,null,null,null,null,null,null,null,null,null,null,null,null,null,null,null,null,0,0,0,0,0,0,0,0,0,null,null,31]
[25,"س 25",null,null,null,null,null,null,null,null,null,null,null,null,null,null,null,null,null,null,null,null,null,null,null,null,null,null,null,null,null,null,null,0,0,0,0,0,0,0,0,0]
[26,"س 26",null,null,null,null,null,null,null,null,null,null,null,null,null,null,null,null,null,null,null,null,null,null,null,null,null,null,null,null,null,null,null,0,0,0,0,0,0,0,0,0]
[27,"س 27",null,null,null,null,null,null,null,null,null,null,null,null,null,null,null,null,null,null,null,null,null,null,null,null,null,null,null,null,null,null,null,0,0,0,0,0,0,0,0,0]
[28,"س 28",null,null,null,null,null,null,null,null,null,null,null,null,null,null,null,null,null,null,null,null,null,null,null,null,null,null,null,null,null,null,null,0,0,0,0,0,0,0,0,0]
[29,"س 29",null,null,null,null,null,null,null,null,null,null,null,null,null,null,null,null,null,null,null,null,null,null,null,null,null,null,null,null,null,null,null,0,0,0,0,0,0,0,0,0]
[30,"س 30",null,null,null,null,null,null,null,null,null,null,null,null,null,null,null,null,null,null,null,null,null,null,null,null,null,null,null,null,null,null,null,0,0,0,0,0,0,0,0,0]
[31,"س 31",null,null,null,null,null,null,null,null,null,null,null,null,null,null,null,null,null,null,null,null,null,null,null,null,null,null,null,null,null,null,null,0,0,0,0,0,0,0,0,0,null,null,null,"كانون الثاني"]
[32,"س 32",null,null,null,null,null,null,null,null,null,null,null,null,null,null,null,null,null,null,null,null,null,null,null,null,null,null,null,null,null,null,null,0,0,0,0,0,0,0,0,0,null,null,null,"شباط"]
[33,"س 33",null,null,null,null,null,null,null,null,null,null,null,null,null,null,null,null,null,null,null,null,null,null,null,null,null,null,null,null,null,null,null,0,0,0,0,0,0,0,0,0,null,null,null,"آذار"]
[34,"س 34",null,null,null,null,null,null,null,null,null,null,null,null,null,null,null,null,null,null,null,null,null,null,null,null,null,null,null,null,null,null,null,0,0,0,0,0,0,0,0,0,null,null,null,"نيسان"]
[35,"س 35",null,null,null,null,null,null,null,null,null,null,null,null,null,null,null,null,null,null,null,null,null,null,null,null,null,null,null,null,null,null,null,0,0,0,0,0,0,0,0,0,null,null,null,"أيار"]
[36,"س 36",null,null,null,null,null,null,null,null,null,null,null,null,null,null,null,null,null,null,null,null,null,null,null,null,null,null,null,null,null,null,null,0,0,0,0,0,0,0,0,0,null,null,null,"حزيران"]
[37,"س 37",null,null,null,null,null,null,null,null,null,null,null,null,null,null,null,null,null,null,null,null,null,null,null,null,null,null,null,null,null,null,null,0,0,0,0,0,0,0,0,0,null,null,null,"تموز"]
[38,"س 38",null,null,null,null,null,null,null,null,null,null,null,null,null,null,null,null,null,null,null,null,null,null,null,null,null,null,null,null,null,null,null,0,0,0,0,0,0,0,0,0,null,null,null,"آب"]
[39,"س 39",null,null,null,null,null,null,null,null,null,null,null,null,null,null,null,null,null,null,null,null,null,null,null,null,null,null,null,null,null,null,null,0,0,0,0,0,0,0,0,0,null,null,null,"أيلول"]
[40,"س 40",null,null,null,null,null,null,null,null,null,null,null,null,null,null,null,null,null,null,null,null,null,null,null,null,null,null,null,null,null,null,null,0,0,0,0,0,0,0,0,0,null,null,null,"تشرين الأول"]
[41,"س 41",null,null,null,null,null,null,null,null,null,null,null,null,null,null,null,null,null,null,null,null,null,null,null,null,null,null,null,null,null,null,null,0,0,0,0,0,0,0,0,0,null,null,null,"تشرين الثاني"]
[42,"س 42",null,null,null,null,null,null,null,null,null,null,null,null,null,null,null,null,null,null,null,null,null,null,null,null,null,null,null,null,null,null,null,0,0,0,0,0,0,0,0,0,null,null,null,"كانون الأول"]
[43,"س 43",null,null,null,null,null,null,null,null,null,null,null,null,null,null,null,null,null,null,null,null,null,null,null,null,null,null,null,null,null,null,null,0,0,0,0,0,0,0,0,0]
[44,"س 44",null,null,null,null,null,null,null,null,null,null,null,null,null,null,null,null,null,null,null,null,null,null,null,null,null,null,null,null,null,null,null,0,0,0,0,0,0,0,0,0]
[45,"س 45",null,null,null,null,null,null,null,null,null,null,null,null,null,null,null,null,null,null,null,null,null,null,null,null,null,null,null,null,null,null,null,0,0,0,0,0,0,0,0,0]
[46,"س 46",null,null,null,null,null,null,null,null,null,null,null,null,null,null,null,null,null,null,null,null,null,null,null,null,null,null,null,null,null,null,null,0,0,0,0,0,0,0,0,0]
[47,"س 47",null,null,null,null,null,null,null,null,null,null,null,null,null,null,null,null,null,null,null,null,null,null,null,null,null,null,null,null,null,null,null,0,0,0,0,0,0,0,0,0]
[48,"س 48",null,null,null,null,null,null,null,null,null,null,null,null,null,null,null,null,null,null,null,null,null,null,null,null,null,null,null,null,null,null,null,0,0,0,0,0,0,0,0,0]
[49,"س 49",null,null,null,null,null,null,null,null,null,null,null,null,null,null,null,null,null,null,null,null,null,null,null,null,null,null,null,null,null,null,null,0,0,0,0,0,0,0,0,0]
[50,"س 50",null,null,null,null,null,null,null,null,null,null,null,null,null,null,null,null,null,null,null,null,null,null,null,null,null,null,null,null,null,null,null,0,0,0,0,0,0,0,0,0]
[51,null,null,null,null,null,null,null,null,null,null,null,null,null,null,null,null,null,null,null,null,null,null,null,null,null,null,null,null,null,null,null,null,0,0,0,0,0,0,0,0,0]
[52,null,null,null,null,null,null,null,null,null,null,null,null,null,null,null,null,null,null,null,null,null,null,null,null,null,null,null,null,null,null,null,null,0,0,0,0,0,0,0,0,0]
[53,null,null,null,null,null,null,null,null,null,null,null,null,null,null,null,null,null,null,null,null,null,null,null,null,null,null,null,null,null,null,null,null,0,0,0,0,0,0,0,0,0]
[54,null,null,null,null,null,null,null,null,null,null,null,null,null,null,null,null,null,null,null,null,null,null,null,null,null,null,null,null,null,null,null,null,0,0,0,0,0,0,0,0,0]
[55,null,null,null,null,null,null,null,null,null,null,null,null,null,null,null,null,null,null,null,null,null,null,null,null,null,null,null,null,null,null,null,null,0,0,0,0,0,0,0,0,0]
[56,null,null,null,null,null,null,null,null,null,null,null,null,null,null,null,null,null,null,null,null,null,null,null,null,null,null,null,null,null,null,null,null,0,0,0,0,0,0,0,0,0]
[57,null,null,null,null,null,null,null,null,null,null,null,null,null,null,null,null,null,null,null,null,null,null,null,null,null,null,null,null,null,null,null,null,0,0,0,0,0,0,0,0,0]
[58,null,null,null,null,null,null,null,null,null,null,null,null,null,null,null,null,null,null,null,null,null,null,null,null,null,null,null,null,null,null,null,null,0,0,0,0,0,0,0,0,0]
[59,null,null,null,null,null,null,null,null,null,null,null,null,null,null,null,null,null,null,null,null,null,null,null,null,null,null,null,null,null,null,null,null,0,0,0,0,0,0,0,0,0]
[60,null,null,null,null,null,null,null,null,null,null,null,null,null,null,null,null,null,null,null,null,null,null,null,null,null,null,null,null,null,null,null,null,0,0,0,0,0,0,0,0,0]
[61,null,null,null,null,null,null,null,null,null,null,null,null,null,null,null,null,null,null,null,null,null,null,null,null,null,null,null,null,null,null,null,null,0,0,0,0,0,0,0,0,0]
[62,null,null,null,null,null,null,null,null,null,null,null,null,null,null,null,null,null,null,null,null,null,null,null,null,null,null,null,null,null,null,null,null,0,0,0,0,0,0,0,0,0]
[63,null,null,null,null,null,null,null,null,null,null,null,null,null,null,null,null,null,null,null,null,null,null,null,null,null,null,null,null,null,null,null,null,0,0,0,0,0,0,0,0,0]
[64,null,null,null,null,null,null,null,null,null,null,null,null,null,null,null,null,null,null,null,null,null,null,null,null,null,null,null,null,null,null,null,null,0,0,0,0,0,0,0,0,0]
[null,null,null,null,null,null,null,null,null,null,null,null,null,null,null,null,null,null,null,null,null,null,null,null,null,null,null,null,null,null,null,null,null,0,0,0,0,0,0,0,0,0]
[1,null,null,null,null,null,null,null,null,null,null,null,null,null,null,null,null,null,null,null,null,null,null,null,null,null,null,null,null,null,null,null,null,{"$f":"COUNTIF(C73:AG73,\"*\"&AH$7&\"*\")","v":0},{"$f":"COUNTIF(C73:AG73,\"*\"&AI$7&\"*\")","v":0},{"$f":"COUNTIF(C73:AH73,\"*\"&AJ$7&\"*\")","v":0},{"$f":"COUNTIF(C73:AG73,\"*\"&AK$7&\"*\")","v":0},{"$f":"COUNTIF(C73:AG73,\"*\"&AL$7&\"*\")","v":0},{"$f":"COUNTIF(C73:AG73,\"*\"&AM$7&\"*\")","v":0},{"$f":"COUNTIF(C73:AG73,\"*\"&AN$7&\"*\")","v":0},{"$f":"COUNTIF(C73:AG73,\"*\"&AO$7&\"*\")","v":0},{"$f":"COUNTIF(C73:AN73,\"*\"&AP$7&\"*\")","v":0}]

{"sheet":"خلاصة نهائية","index":1,"n_rows":7,"n_cols":119,"rows_kept":7,"cut":false,"hidden":false,"merged":[[5,2,5,5],[4,2,4,10],[5,6,5,10],[4,0,6,0],[4,1,6,1],[5,11,5,14],[5,15,5,19],[4,20,4,28],[4,29,4,37],[4,38,4,46],[5,20,5,23],[5,24,5,28],[5,29,5,32],[5,33,5,37],[4,11,4,19],[5,38,5,41],[5,42,5,46],[5,78,5,82],[4,65,4,73],[5,47,5,50],[5,51,5,55],[4,56,4,64],[4,47,4,55],[4,74,4,82],[5,56,5,59],[5,60,5,64],[5,65,5,68],[5,69,5,73],[5,74,5,77],[4,110,4,118],[5,110,5,113],[5,114,5,118],[5,83,5,86],[5,87,5,91],[5,92,5,95],[5,96,5,100],[5,101,5,104],[5,105,5,109],[4,83,4,91],[4,92,4,100],[4,101,4,109]]}
[]
[]
[null,"أيار"]
[]
["م","الاسم","يناير",null,null,null,null,null,null,null,null,"فبراير",null,null,null,null,null,null,null,null,"مارس",null,null,null,null,null,null,null,null,"أبريل",null,null,null,null,null,null,null,null,"مايو",null,null,null,null,null,null,null,null,"يونيو",null,null,null,null,null,null,null,null,"يوليو",null,null,null,null,null,null,null,null,"أغسطس",null,null,null,null,null,null,null,null,"سبتمبر",null,null,null,null,null,null,null,null,"أكتوبر",null,null,null,null,null,null,null,null,"نوفمبر",null,null,null,null,null,null,null,null,"ديسمبر",null,null,null,null,null,null,null,null,"مجموع الغياب السنوي "]
[null,null,"المجموع الاجازات ",null,null,null,"العقوبات ",null,null,null,null,"المجموع الاجازات ",null,null,null,"العقوبات ",null,null,null,null,"المجموع الاجازات ",null,null,null,"العقوبات ",null,null,null,null,"المجموع الاجازات ",null,null,null,"العقوبات ",null,null,null,null,"المجموع الاجازات ",null,null,null,"العقوبات ",null,null,null,null,"المجموع الاجازات ",null,null,null,"العقوبات ",null,null,null,null,"المجموع الاجازات ",null,null,null,"العقوبات ",null,null,null,null,"المجموع الاجازات ",null,null,null,"العقوبات ",null,null,null,null,"المجموع الاجازات ",null,null,null,"العقوبات ",null,null,null,null,"المجموع الاجازات ",null,null,null,"العقوبات ",null,null,null,null,"المجموع الاجازات ",null,null,null,"العقوبات ",null,null,null,null,"المجموع الاجازات ",null,null,null,"العقوبات ",null,null,null,null,"المجموع الاجازات ",null,null,null,"العقوبات "]
[null,null,"عرضية","مرضية ","عدم صرف","سنوية","تنبيه","انذار","حسم","مغادرات","تأخير","عرضية","مرضية ","عدم صرف","سنوية","تنبيه","انذار","حسم","مغادرات","تأخير","عرضية","مرضية ","عدم صرف","سنوية","تنبيه","انذار","حسم","مغادرات","تأخير","عرضية","مرضية ","عدم صرف","سنوية","تنبيه","انذار","حسم","مغادرات","تأخير","عرضية","مرضية ","عدم صرف","سنوية","تنبيه","انذار","حسم","مغادرات","تأخير","عرضية","مرضية ","عدم صرف","سنوية","تنبيه","انذار","حسم","مغادرات","تأخير","عرضية","مرضية ","عدم صرف","سنوية","تنبيه","انذار","حسم","مغادرات","تأخير","عرضية","مرضية ","عدم صرف","سنوية","تنبيه","انذار","حسم","مغادرات","تأخير","عرضية","مرضية ","عدم صرف","سنوية","تنبيه","انذار","حسم","مغادرات","تأخير","عرضية","مرضية ","عدم صرف","سنوية","تنبيه","انذار","حسم","مغادرات","تأخير","عرضية","مرضية ","عدم صرف","سنوية","تنبيه","انذار","حسم","مغادرات","تأخير","عرضية","مرضية ","عدم صرف","سنوية","تنبيه","انذار","حسم","مغادرات","تأخير","عرضية","مرضية ","عدم صرف","سنوية","تنبيه","انذار","حسم","مغادرات","تأخير"]